[Event "Late-Titled-Tuesday-Blitz-March-05-2024"]
[Site "Chess.com"]
[Date "2024.03.05"]
[Round "8"]
[White "xasid81"]
[Black "CarlosjPineror"]
[Result "1-0"]
[WhiteElo "2580"]
[BlackElo "2730"]
[TimeControl "180+1"]
[EndTime "15:26:22 PST"]
[Termination "xasid81 won on time"]

1. Nf3 {[%clk 0:03:00.9]} 1... Nf6 {[%clk 0:02:56.1]} 2. d4 {[%clk 0:02:59.4]}
2... e6 {[%clk 0:02:54.6]} 3. Bf4 {[%clk 0:02:54.5]} 3... b6 {[%clk 0:02:54.7]}
4. e3 {[%clk 0:02:54.7]} 4... Bb7 {[%clk 0:02:54.8]} 5. Nbd2 {[%clk 0:02:55.3]}
5... Nh5 {[%clk 0:02:55.2]} 6. Bg3 {[%clk 0:02:54.5]} 6... Nxg3 {[%clk
0:02:54.9]} 7. hxg3 {[%clk 0:02:55.4]} 7... Be7 {[%clk 0:02:55.1]} 8. Bd3 {[%clk
0:02:55.8]} 8... h6 {[%clk 0:02:54.9]} 9. Qe2 {[%clk 0:02:55.5]} 9... d6 {[%clk
0:02:55.1]} 10. c3 {[%clk 0:02:55.8]} 10... a6 {[%clk 0:02:53.5]} 11. a4 {[%clk
0:02:55.5]} 11... Nd7 {[%clk 0:02:53.7]} 12. Be4 {[%clk 0:02:54.7]} 12... c6
{[%clk 0:02:52.8]} 13. g4 {[%clk 0:02:52.9]} 13... Nf6 {[%clk 0:02:43.8]} 14. g5
{[%clk 0:02:50.4]} 14... Nxe4 {[%clk 0:02:44]} 15. Nxe4 {[%clk 0:02:50.7]} 15...
d5 {[%clk 0:02:31.4]} 16. Ng3 {[%clk 0:02:43.5]} 16... Bxg5 {[%clk 0:02:31.1]}
17. Nxg5 {[%clk 0:02:44.2]} 17... Qxg5 {[%clk 0:02:30.4]} 18. a5 {[%clk
0:02:39.4]} 18... b5 {[%clk 0:02:23.9]} 19. b4 {[%clk 0:02:38.7]} 19... Bc8
{[%clk 0:02:17]} 20. Qh5 {[%clk 0:02:35.1]} 20... Qxh5 {[%clk 0:02:15.2]} 21.
Nxh5 {[%clk 0:02:35.2]} 21... Kf8 {[%clk 0:02:13.5]} 22. f4 {[%clk 0:02:34.8]}
22... f6 {[%clk 0:02:12.7]} 23. Kf2 {[%clk 0:02:33.7]} 23... Bd7 {[%clk
0:02:11.2]} 24. Ng3 {[%clk 0:02:30.6]} 24... Be8 {[%clk 0:02:09.2]} 25. Ne2
{[%clk 0:02:29.8]} 25... Bg6 {[%clk 0:02:09.4]} 26. Nc1 {[%clk 0:02:29.6]} 26...
Be4 {[%clk 0:02:09.2]} 27. Nb3 {[%clk 0:02:28.7]} 27... Ke7 {[%clk 0:02:03.6]}
28. Nc5 {[%clk 0:02:28.7]} 28... Bf5 {[%clk 0:01:58.4]} 29. Rh4 {[%clk
0:02:28.2]} 29... h5 {[%clk 0:01:53.3]} 30. Rah1 {[%clk 0:02:24.4]} 30... g6
{[%clk 0:01:53.8]} 31. Re1 {[%clk 0:02:21.4]} 31... Kd6 {[%clk 0:01:52.1]} 32.
Nb7+ {[%clk 0:02:20.3]} 32... Kc7 {[%clk 0:01:51.1]} 33. Nc5 {[%clk 0:02:21.2]}
33... Rh7 {[%clk 0:01:41.9]} 34. Rg1 {[%clk 0:02:16.5]} 34... Rhh8 {[%clk
0:01:41]} 35. Re1 {[%clk 0:02:16]} 35... g5 {[%clk 0:01:29.7]} 36. Rh2 {[%clk
0:02:10.2]} 36... Kd6 {[%clk 0:01:24.4]} 37. g3 {[%clk 0:02:05.9]} 37... h4
{[%clk 0:01:21]} 38. gxh4 {[%clk 0:02:05]} 38... gxh4 {[%clk 0:01:20.5]} 39. Rg1
{[%clk 0:02:02.8]} 39... Rh7 {[%clk 0:01:10.4]} 40. Rgh1 {[%clk 0:02:00.5]}
40... h3 {[%clk 0:01:09.9]} 41. Rg1 {[%clk 0:02:00.6]} 41... e5 {[%clk 0:01:07]}
42. fxe5+ {[%clk 0:01:40.2]} 42... fxe5 {[%clk 0:01:07.9]} 43. Rg5 {[%clk
0:01:40.4]} 43... Rf8 {[%clk 0:01:04.5]} 44. Kg3 {[%clk 0:01:25.9]} 44... exd4
{[%clk 0:00:31.5]} 45. exd4 {[%clk 0:01:21.3]} 45... Be4 {[%clk 0:00:27.7]} 46.
Re2 {[%clk 0:00:53.2]} 46... Rf3+ {[%clk 0:00:24]} 47. Kh2 {[%clk 0:00:51.8]}
47... Rxc3 {[%clk 0:00:21.2]} 48. Rf2 {[%clk 0:00:23]} 48... Rf3 {[%clk
0:00:15.5]} 49. Rxf3 {[%clk 0:00:19.3]} 49... Bxf3 {[%clk 0:00:16.4]} 50. Nxa6
{[%clk 0:00:19.3]} 50... Bg2 {[%clk 0:00:15.7]} 51. Nc5 {[%clk 0:00:16.4]} 51...
Rf7 {[%clk 0:00:15.8]} 52. Rg6+ {[%clk 0:00:15.5]} 52... Kc7 {[%clk 0:00:15.9]}
53. a6 {[%clk 0:00:14.6]} 53... Kb6 {[%clk 0:00:13.4]} 54. Rg8 {[%clk
0:00:14.1]} 54... Ka7 {[%clk 0:00:10.3]} 55. Rg6 {[%clk 0:00:13.3]} 55... Kb6
{[%clk 0:00:10.5]} 56. Rg8 {[%clk 0:00:13.1]} 56... Ka7 {[%clk 0:00:08.1]} 57.
Rc8 {[%clk 0:00:11.9]} 57... Kb6 {[%clk 0:00:07.9]} 58. Rb8+ {[%clk 0:00:10.8]}
58... Ka7 {[%clk 0:00:08.4]} 59. Re8 {[%clk 0:00:09.5]} 59... Kb6 {[%clk
0:00:07.1]} 60. Re6 {[%clk 0:00:08.6]} 60... Rf1 {[%clk 0:00:03.6]} 61. Re7
{[%clk 0:00:08]} 61... Rh1+ {[%clk 0:00:04.1]} 62. Kg3 {[%clk 0:00:07.5]} 1-0

[Event "Late-Titled-Tuesday-Blitz-March-05-2024"]
[Site "Chess.com"]
[Date "2024.03.05"]
[Round "8"]
[White "AccioChess"]
[Black "WilsonPalencia21"]
[Result "1-0"]
[WhiteElo "2425"]
[BlackElo "2560"]
[TimeControl "180+1"]
[EndTime "15:26:27 PST"]
[Termination "AccioChess won on time"]

1. e4 {[%clk 0:02:37.3]} 1... c5 {[%clk 0:02:59.6]} 2. Nf3 {[%clk 0:02:36.5]}
2... d6 {[%clk 0:02:59.6]} 3. d4 {[%clk 0:02:36.5]} 3... cxd4 {[%clk 0:03:00.1]}
4. Nxd4 {[%clk 0:02:37.1]} 4... Nf6 {[%clk 0:03:00.8]} 5. Nc3 {[%clk 0:02:36.4]}
5... g6 {[%clk 0:03:01.7]} 6. Be3 {[%clk 0:02:33.9]} 6... Bg7 {[%clk 0:02:56]}
7. f3 {[%clk 0:02:33.4]} 7... O-O {[%clk 0:02:56]} 8. Qd2 {[%clk 0:02:30.6]}
8... Nc6 {[%clk 0:02:56.2]} 9. O-O-O {[%clk 0:02:30.6]} 9... Nxd4 {[%clk
0:02:56.5]} 10. Bxd4 {[%clk 0:02:29.2]} 10... Be6 {[%clk 0:02:57.4]} 11. h4
{[%clk 0:02:27.6]} 11... Qa5 {[%clk 0:02:56.9]} 12. h5 {[%clk 0:02:21.9]} 12...
Rfc8 {[%clk 0:02:55.7]} 13. hxg6 {[%clk 0:02:17.8]} 13... fxg6 {[%clk
0:02:55.6]} 14. a3 {[%clk 0:02:10.7]} 14... Bf7 {[%clk 0:02:55]} 15. Nb5 {[%clk
0:02:05.8]} 15... Qxd2+ {[%clk 0:02:40.3]} 16. Rxd2 {[%clk 0:02:05.1]} 16... a6
{[%clk 0:02:38.2]} 17. Nc3 {[%clk 0:02:05.1]} 17... h5 {[%clk 0:02:34.8]} 18.
Kb1 {[%clk 0:01:46.8]} 18... Bh6 {[%clk 0:02:26.5]} 19. Rd1 {[%clk 0:01:45.6]}
19... e5 {[%clk 0:02:19.2]} 20. Bf2 {[%clk 0:01:43.1]} 20... Bf8 {[%clk
0:02:16]} 21. a4 {[%clk 0:01:18.6]} 21... Nd7 {[%clk 0:01:54.2]} 22. Nd5 {[%clk
0:01:16.4]} 22... Kg7 {[%clk 0:01:38.9]} 23. a5 {[%clk 0:01:15.8]} 23... Nf6
{[%clk 0:01:36.8]} 24. Nb6 {[%clk 0:01:14]} 24... g5 {[%clk 0:01:31]} 25. Be3
{[%clk 0:01:09.1]} 25... Kg6 {[%clk 0:01:28.1]} 26. Be2 {[%clk 0:01:08.4]} 26...
h4 {[%clk 0:01:26.7]} 27. Nxa8 {[%clk 0:01:02.5]} 27... Rxa8 {[%clk 0:01:26]}
28. Rdg1 {[%clk 0:01:02.4]} 28... Nh5 {[%clk 0:01:24.8]} 29. Rd1 {[%clk
0:00:53.4]} 29... Ng3 {[%clk 0:01:19.3]} 30. Rhe1 {[%clk 0:00:52.7]} 30... Be7
{[%clk 0:01:03.9]} 31. Bd3 {[%clk 0:00:50]} 31... Be6 {[%clk 0:00:59.3]} 32. c4
{[%clk 0:00:45.2]} 32... Rc8 {[%clk 0:00:57.4]} 33. b3 {[%clk 0:00:43.6]} 33...
Kf6 {[%clk 0:00:52.9]} 34. Kb2 {[%clk 0:00:43.1]} 34... Bd8 {[%clk 0:00:50.7]}
35. Bd2 {[%clk 0:00:39.3]} 35... Be7 {[%clk 0:00:37.9]} 36. Bb4 {[%clk 0:00:38]}
36... g4 {[%clk 0:00:30.3]} 37. fxg4 {[%clk 0:00:33]} 37... Bxg4 {[%clk
0:00:29.8]} 38. Rd2 {[%clk 0:00:33.3]} 38... Ke6 {[%clk 0:00:29.9]} 39. Bc2
{[%clk 0:00:28.7]} 39... Rc6 {[%clk 0:00:25.3]} 40. Bd1 {[%clk 0:00:26.1]} 40...
Bxd1 {[%clk 0:00:19.6]} 41. Rdxd1 {[%clk 0:00:27]} 41... Bg5 {[%clk 0:00:19.2]}
42. Rd3 {[%clk 0:00:25.6]} 42... Bf4 {[%clk 0:00:16.7]} 43. Bd2 {[%clk
0:00:19.7]} 43... Rc5 {[%clk 0:00:14.7]} 44. Bxf4 {[%clk 0:00:16.8]} 44... exf4
{[%clk 0:00:14.8]} 45. Red1 {[%clk 0:00:16.2]} 45... Nxe4 {[%clk 0:00:13.9]} 46.
Rh3 {[%clk 0:00:10.9]} 46... Rh5 {[%clk 0:00:13.1]} 47. Rdh1 {[%clk 0:00:10.1]}
47... Ng3 {[%clk 0:00:09.7]} 48. Rxh4 {[%clk 0:00:10]} 48... Re5 {[%clk
0:00:09.9]} 49. Rh6+ {[%clk 0:00:09.7]} 49... Kd7 {[%clk 0:00:10.1]} 50. Rd1
{[%clk 0:00:09.8]} 50... Nf5 {[%clk 0:00:08.2]} 51. Rh7+ {[%clk 0:00:09]} 51...
Kc6 {[%clk 0:00:08.3]} 52. Rd2 {[%clk 0:00:09.3]} 52... Ne3 {[%clk 0:00:08.3]}
53. Rf7 {[%clk 0:00:09.2]} 53... Re4 {[%clk 0:00:08.2]} 54. Ka3 {[%clk
0:00:07.1]} 54... Rxc4 {[%clk 0:00:06.1]} 55. bxc4 {[%clk 0:00:04.6]} 55...
Nxc4+ {[%clk 0:00:06.2]} 56. Kb4 {[%clk 0:00:05.1]} 56... Nxd2 {[%clk
0:00:06.6]} 57. Rxf4 {[%clk 0:00:05.2]} 57... d5 {[%clk 0:00:06.6]} 58. g4
{[%clk 0:00:05.4]} 58... Ne4 {[%clk 0:00:05.7]} 59. Rf5 {[%clk 0:00:05]} 59...
Nd6 {[%clk 0:00:04.7]} 60. Rf6 {[%clk 0:00:04.8]} 60... d4 {[%clk 0:00:05.2]}
61. g5 {[%clk 0:00:04.7]} 61... Kd5 {[%clk 0:00:05.8]} 62. g6 {[%clk 0:00:04.7]}
62... Ne4 {[%clk 0:00:03.9]} 63. Rf5+ {[%clk 0:00:03.8]} 63... Ke6 {[%clk
0:00:04.1]} 64. g7 {[%clk 0:00:04.3]} 64... Kxf5 {[%clk 0:00:03]} 65. g8=Q
{[%clk 0:00:04.5]} 65... d3 {[%clk 0:00:03.5]} 66. Qd5+ {[%clk 0:00:04.6]} 66...
Kf4 {[%clk 0:00:04]} 67. Qxd3 {[%clk 0:00:05]} 1-0

[Event "Late-Titled-Tuesday-Blitz-March-05-2024"]
[Site "Chess.com"]
[Date "2024.03.05"]
[Round "8"]
[White "vladoboch"]
[Black "PepeCuenca"]
[Result "0-1"]
[WhiteElo "2437"]
[BlackElo "2681"]
[TimeControl "180+1"]
[EndTime "15:26:28 PST"]
[Termination "PepeCuenca won by resignation"]

1. e4 {[%clk 0:03:00.9]} 1... d6 {[%clk 0:02:57.7]} 2. d4 {[%clk 0:02:59.4]}
2... Nf6 {[%clk 0:02:58.2]} 3. Nc3 {[%clk 0:02:59.1]} 3... e5 {[%clk 0:02:58.9]}
4. Nge2 {[%clk 0:02:59.2]} 4... Be7 {[%clk 0:02:58.4]} 5. g3 {[%clk 0:02:59.1]}
5... O-O {[%clk 0:02:58.1]} 6. Bg2 {[%clk 0:02:59.5]} 6... c6 {[%clk 0:02:58.6]}
7. O-O {[%clk 0:02:59.1]} 7... a5 {[%clk 0:02:58.8]} 8. a4 {[%clk 0:02:57.1]}
8... Na6 {[%clk 0:02:59.2]} 9. h3 {[%clk 0:02:52.4]} 9... Nb4 {[%clk 0:02:59.2]}
10. Be3 {[%clk 0:02:51.5]} 10... d5 {[%clk 0:02:58.6]} 11. dxe5 {[%clk 0:02:46]}
11... Nxe4 {[%clk 0:02:58.5]} 12. Nxe4 {[%clk 0:02:33.2]} 12... dxe4 {[%clk
0:02:58.5]} 13. Bxe4 {[%clk 0:02:11.9]} 13... Bxh3 {[%clk 0:02:49.8]} 14. Re1
{[%clk 0:02:12.1]} 14... Nd5 {[%clk 0:01:45.2]} 15. Nf4 {[%clk 0:02:02.3]} 15...
Nxe3 {[%clk 0:01:40.2]} 16. Rxe3 {[%clk 0:01:59.4]} 16... Qxd1+ {[%clk
0:01:31.9]} 17. Rxd1 {[%clk 0:02:00.3]} 17... Bg4 {[%clk 0:01:26.9]} 18. f3
{[%clk 0:01:56.4]} 18... Bc5 {[%clk 0:01:23.8]} 19. Kf2 {[%clk 0:01:52.2]} 19...
Bc8 {[%clk 0:01:09.1]} 20. Nd3 {[%clk 0:01:45]} 20... Bxe3+ {[%clk 0:01:05.8]}
21. Kxe3 {[%clk 0:01:45.9]} 21... Rd8 {[%clk 0:00:57.3]} 22. Rh1 {[%clk
0:01:43.7]} 22... h6 {[%clk 0:00:53]} 23. g4 {[%clk 0:01:44.1]} 23... Be6 {[%clk
0:00:51.1]} 24. b3 {[%clk 0:01:30.8]} 24... Rac8 {[%clk 0:00:46.9]} 25. Nc5
{[%clk 0:01:27.9]} 25... Rc7 {[%clk 0:00:41.3]} 26. Nxe6 {[%clk 0:01:20.9]}
26... fxe6 {[%clk 0:00:41.2]} 27. f4 {[%clk 0:01:21.6]} 27... Re7 {[%clk
0:00:38.1]} 28. g5 {[%clk 0:01:19.5]} 28... hxg5 {[%clk 0:00:32.8]} 29. fxg5
{[%clk 0:01:15.9]} 29... g6 {[%clk 0:00:19.4]} 30. Rh6 {[%clk 0:01:07]} 30...
Rg7 {[%clk 0:00:18.8]} 31. Bxg6 {[%clk 0:01:06.7]} 31... Rd5 {[%clk 0:00:15.3]}
32. Kf4 {[%clk 0:01:03.7]} 32... Rd2 {[%clk 0:00:07.5]} 33. Be4 {[%clk
0:00:57.7]} 33... Rf2+ {[%clk 0:00:07.2]} 34. Ke3 {[%clk 0:00:56.7]} 34... Rf1
{[%clk 0:00:05.3]} 35. g6 {[%clk 0:00:42.5]} 35... Rg1 {[%clk 0:00:05.7]} 36.
Rh2 {[%clk 0:00:34.4]} 36... Rd7 {[%clk 0:00:03.1]} 37. Bd3 {[%clk 0:00:29.5]}
37... Rg5 {[%clk 0:00:02.4]} 38. Kf4 {[%clk 0:00:26.5]} 38... Rg1 {[%clk
0:00:02.7]} 39. Rf2 {[%clk 0:00:20.7]} 39... Rd4+ {[%clk 0:00:02.2]} 40. Ke3
{[%clk 0:00:19.8]} 40... Rd7 {[%clk 0:00:03]} 41. Rf6 {[%clk 0:00:19.4]} 41...
Re7 {[%clk 0:00:03.3]} 42. Bc4 {[%clk 0:00:18.5]} 42... Kg7 {[%clk 0:00:03.4]}
43. Bd3 {[%clk 0:00:16.2]} 43... Rg5 {[%clk 0:00:03.6]} 44. Kf4 {[%clk
0:00:11.6]} 44... Rg2 {[%clk 0:00:03.4]} 45. Kf3 {[%clk 0:00:11]} 45... Rg1
{[%clk 0:00:03.8]} 46. Kf2 {[%clk 0:00:07.2]} 46... Rh1 {[%clk 0:00:04]} 47. Rf4
{[%clk 0:00:06.9]} 47... Rh5 {[%clk 0:00:03.8]} 48. Re4 {[%clk 0:00:02.7]} 48...
Rg5 {[%clk 0:00:04.2]} 49. Ke3 {[%clk 0:00:01.9]} 49... Rxg6 {[%clk 0:00:04.2]}
50. Rd4 {[%clk 0:00:02.3]} 50... Rg5 {[%clk 0:00:04.3]} 51. Kf4 {[%clk
0:00:01.8]} 51... Rh5 {[%clk 0:00:03.6]} 52. Rd8 {[%clk 0:00:02.2]} 52... Rf7+
{[%clk 0:00:03.9]} 53. Ke3 {[%clk 0:00:02.6]} 53... Rxe5+ {[%clk 0:00:04.1]} 54.
Kd4 {[%clk 0:00:02.9]} 54... Rd5+ {[%clk 0:00:04.3]} 55. Rxd5 {[%clk 0:00:03.5]}
55... exd5 {[%clk 0:00:04.9]} 56. Kc5 {[%clk 0:00:04.3]} 56... Kf6 {[%clk
0:00:04.9]} 57. Kb6 {[%clk 0:00:04.8]} 57... Ke5 {[%clk 0:00:04.3]} 58. Kxa5
{[%clk 0:00:05.3]} 58... Kd4 {[%clk 0:00:03.6]} 59. Kb6 {[%clk 0:00:05.8]} 59...
c5 {[%clk 0:00:03.9]} 60. a5 {[%clk 0:00:05.3]} 60... c4 {[%clk 0:00:02.8]} 61.
bxc4 {[%clk 0:00:05.7]} 61... dxc4 {[%clk 0:00:03.7]} 62. Bg6 {[%clk 0:00:05.9]}
62... Rf6+ {[%clk 0:00:03.9]} 63. Kxb7 {[%clk 0:00:06.4]} 63... Rxg6 {[%clk
0:00:04.5]} 64. a6 {[%clk 0:00:07.3]} 64... Kc3 {[%clk 0:00:04.7]} 65. a7 {[%clk
0:00:07.8]} 65... Rg8 {[%clk 0:00:05.3]} 66. a8=Q {[%clk 0:00:07.5]} 66... Rxa8
{[%clk 0:00:04.5]} 67. Kxa8 {[%clk 0:00:08.4]} 67... Kxc2 {[%clk 0:00:05.2]} 68.
Kb7 {[%clk 0:00:09.3]} 68... Kd3 {[%clk 0:00:06.1]} 69. Kb6 {[%clk 0:00:10.2]}
69... c3 {[%clk 0:00:07]} 70. Kc5 {[%clk 0:00:11.1]} 70... c2 {[%clk 0:00:07.9]}
0-1

[Event "Late-Titled-Tuesday-Blitz-March-05-2024"]
[Site "Chess.com"]
[Date "2024.03.05"]
[Round "8"]
[White "SocoLoco"]
[Black "emeli_chess"]
[Result "0-1"]
[WhiteElo "2216"]
[BlackElo "2412"]
[TimeControl "180+1"]
[EndTime "15:26:30 PST"]
[Termination "emeli_chess won on time"]

1. e4 {[%clk 0:03:00.9]} 1... c5 {[%clk 0:02:59.5]} 2. Nf3 {[%clk 0:02:59.7]}
2... d6 {[%clk 0:02:59.6]} 3. d3 {[%clk 0:02:59.2]} 3... Nc6 {[%clk 0:02:58]} 4.
g3 {[%clk 0:02:59.2]} 4... g6 {[%clk 0:02:58]} 5. Bg2 {[%clk 0:02:59]} 5... Bg7
{[%clk 0:02:58.6]} 6. O-O {[%clk 0:02:58.6]} 6... e6 {[%clk 0:02:58.8]} 7. Nbd2
{[%clk 0:02:58.5]} 7... Nge7 {[%clk 0:02:58.6]} 8. c3 {[%clk 0:02:58.6]} 8...
O-O {[%clk 0:02:57.8]} 9. Qe2 {[%clk 0:02:58.4]} 9... Rb8 {[%clk 0:02:56.8]} 10.
Nh4 {[%clk 0:02:54.3]} 10... b5 {[%clk 0:02:54.3]} 11. f4 {[%clk 0:02:54]} 11...
f5 {[%clk 0:02:50.5]} 12. Rd1 {[%clk 0:02:39.9]} 12... b4 {[%clk 0:02:47.7]} 13.
Nb1 {[%clk 0:02:24.1]} 13... bxc3 {[%clk 0:02:39.4]} 14. bxc3 {[%clk 0:02:23.5]}
14... Nd4 {[%clk 0:02:23]} 15. Qf2 {[%clk 0:02:03.4]} 15... Nb5 {[%clk 0:02:20]}
16. Bb2 {[%clk 0:01:55.9]} 16... Nxc3 {[%clk 0:01:53.2]} 17. Bxc3 {[%clk
0:01:43.9]} 17... Rxb1 {[%clk 0:01:52.5]} 18. Raxb1 {[%clk 0:01:13.3]} 18...
Bxc3 {[%clk 0:01:51.9]} 19. Nf3 {[%clk 0:01:10.4]} 19... Nc6 {[%clk 0:01:44.4]}
20. Kh1 {[%clk 0:01:07.9]} 20... Bg7 {[%clk 0:01:37.7]} 21. h3 {[%clk
0:01:04.7]} 21... Nd4 {[%clk 0:01:35.4]} 22. Kh2 {[%clk 0:01:01.5]} 22... Qc7
{[%clk 0:01:30]} 23. Nxd4 {[%clk 0:00:47.6]} 23... Bxd4 {[%clk 0:01:29.3]} 24.
Qc2 {[%clk 0:00:47.8]} 24... Bd7 {[%clk 0:01:14.6]} 25. Qb3 {[%clk 0:00:39]}
25... Kg7 {[%clk 0:01:09.5]} 26. Qb7 {[%clk 0:00:37.8]} 26... Rc8 {[%clk
0:01:09.4]} 27. Qxc7 {[%clk 0:00:35.9]} 27... Rxc7 {[%clk 0:01:09.3]} 28. Rdc1
{[%clk 0:00:35.7]} 28... Kf6 {[%clk 0:00:47.6]} 29. g4 {[%clk 0:00:35.7]} 29...
e5 {[%clk 0:00:40.5]} 30. Kg3 {[%clk 0:00:31.7]} 30... exf4+ {[%clk 0:00:39.1]}
31. Kxf4 {[%clk 0:00:32.6]} 31... g5+ {[%clk 0:00:39.3]} 32. Kf3 {[%clk
0:00:32.2]} 32... f4 {[%clk 0:00:39.5]} 33. Rb8 {[%clk 0:00:27.5]} 33... a6
{[%clk 0:00:35.7]} 34. Rcb1 {[%clk 0:00:26.6]} 34... Bb5 {[%clk 0:00:35.7]} 35.
Rf8+ {[%clk 0:00:23.2]} 35... Ke7 {[%clk 0:00:32.7]} 36. Rg8 {[%clk 0:00:21.3]}
36... Bxd3 {[%clk 0:00:31.1]} 37. Rbb8 {[%clk 0:00:16.4]} 37... Kd7 {[%clk
0:00:30.7]} 38. h4 {[%clk 0:00:11.6]} 38... h6 {[%clk 0:00:29.8]} 39. hxg5
{[%clk 0:00:09.9]} 39... hxg5 {[%clk 0:00:30]} 40. Rxg5 {[%clk 0:00:10.5]} 40...
Be5 {[%clk 0:00:29.3]} 41. Rgg8 {[%clk 0:00:09.9]} 41... Kc6 {[%clk 0:00:29.2]}
42. g5 {[%clk 0:00:10.5]} 42... Re7 {[%clk 0:00:26.2]} 43. Bh3 {[%clk
0:00:09.1]} 43... Bd4 {[%clk 0:00:24.7]} 44. g6 {[%clk 0:00:09]} 44... Bxe4+
{[%clk 0:00:24.6]} 45. Kg4 {[%clk 0:00:09.4]} 45... f3 {[%clk 0:00:23.6]} 46.
Kg3 {[%clk 0:00:08]} 46... f2 {[%clk 0:00:23.4]} 47. Bf1 {[%clk 0:00:07.4]}
47... Re6 {[%clk 0:00:19.8]} 48. Rgc8+ {[%clk 0:00:05.7]} 48... Kd5 {[%clk
0:00:19]} 49. Re8 {[%clk 0:00:05.6]} 49... Rxg6+ {[%clk 0:00:18.8]} 50. Kh4
{[%clk 0:00:05]} 50... Rg1 {[%clk 0:00:17.8]} 51. Bxa6 {[%clk 0:00:03.6]} 51...
f1=Q {[%clk 0:00:16.3]} 52. Bxf1 {[%clk 0:00:04.2]} 52... Rxf1 {[%clk
0:00:16.7]} 53. Rg8 {[%clk 0:00:03.9]} 53... Rh1+ {[%clk 0:00:16.7]} 54. Kg5
{[%clk 0:00:04]} 54... Rg1+ {[%clk 0:00:17]} 55. Kf4 {[%clk 0:00:04.4]} 55...
Rxg8 {[%clk 0:00:16.9]} 56. Rxg8 {[%clk 0:00:03.3]} 56... Bb1 {[%clk 0:00:16.8]}
57. Rg5+ {[%clk 0:00:03.5]} 57... Kc4 {[%clk 0:00:16.2]} 58. Rg6 {[%clk
0:00:04.4]} 58... d5 {[%clk 0:00:15.8]} 59. Ra6 {[%clk 0:00:04.2]} 59... Kd3
{[%clk 0:00:14.5]} 60. Kf3 {[%clk 0:00:04.6]} 60... c4 {[%clk 0:00:14.4]} 61.
Rc6 {[%clk 0:00:03.3]} 61... c3 {[%clk 0:00:14.4]} 62. Kf4 {[%clk 0:00:02.6]}
62... c2 {[%clk 0:00:14.6]} 63. Kf5 {[%clk 0:00:03.1]} 63... Bc3 {[%clk
0:00:14.9]} 64. Rc5 {[%clk 0:00:02.6]} 64... c1=Q {[%clk 0:00:14.6]} 65. Rxd5+
{[%clk 0:00:03.1]} 65... Kc4+ {[%clk 0:00:14.9]} 66. Ke6 {[%clk 0:00:01.4]}
66... Qe3+ {[%clk 0:00:14.4]} 67. Kd6 {[%clk 0:00:02.3]} 67... Qb6+ {[%clk
0:00:14]} 0-1